Cogmind - Beta 16 @@@ ROGUE MODE // 2026.01.12 @ 19:10:51 Player: Glyb Result: Destroyed by G-47 Trooper with Particle Gun Performance ------------- Evolutions (2) 1000 Regions Visited (6) 1200 Robots Destroyed (58) 290 Value Destroyed (1284) 1284 Prototype IDs (1) 20 Alien Tech Used (0) 0 Bonus (0) 0 TOTAL SCORE: 3794 Bonus ------- None Cogmind --------- Core Integrity 0/550 Matter 101/300 Energy 100/100 System Corruption 0% Temperature Cool (9) Movement Rolling (100) Location -8/Materials Parts ------- > --- POWER (1) -------- (None) > --- PROPULSION (2) --- Armored Huge Wheel > --- UTILITY (6) ------ Large Storage Unit Visual Processing Unit > --- WEAPON (2) ------- Shotgun Minigun > --- INVENTORY (15) --- Armored Huge Wheel Armored Huge Wheel Armored Huge Wheel Field Recycling Unit (0) Heavy Flail Peak State ------------ > --- POWER ------------ Light Deuterium Engine > --- PROPULSION ------- Armored Huge Wheel > --- UTILITY ---------- Large Storage Unit Visual Processing Unit > --- WEAPON ----------- Shotgun Minigun > --- INVENTORY -------- Armored Huge Wheel Armored Huge Wheel Field Recycling Unit Heavy Flail [Rating: 21] Favorites ----------- Power Improved Deuterium Engine Engine Improved Deuterium Engine Power Core Light Nuclear Core Propulsion Wheel Leg Aluminum Leg Wheel Wheel Hover Unit Hover Unit Flight Unit Improved Flight Unit Utility Visual Processing Unit Device Structural Scanner Storage Medium Storage Unit Processor Visual Processing Unit Protection Light Armor Plating Weapon Light Assault Rifle Energy Gun EM Shotgun Ballistic Gun Light Assault Rifle Ballistic Cannon Advanced Assault Cannon Launcher Heavy Rocket Launcher Special Weapon Enhanced Flamer Impact Weapon Heavy Flail Slashing Weapon Scythe Special Melee Weapon Datajack Build | -11 -10 -9 -9 -9 -8 -8 ------- Run | Yrd Mat Mat Min Exi Min Mat Slots Evolved 4 | . . 2 . . . 2 Power . | . . . . . . . Propulsion . | . . . . . . . Utility 4 | . . 2 . . . 2 Weapon . | . . . . . . . Parts Attached 45 | 6 15 4 7 . 3 10 Power 8 | 1 4 1 1 . . 1 Engine 7 | 1 3 1 1 . . 1 Core 1 | . 1 . . . . . Reactor . | . . . . . . . Propulsion 10 | 2 5 . 1 . . 2 Treads . | . . . . . . . Leg 2 | 2 . . . . . . Wheel 4 | . 2 . 1 . . 1 Hover 3 | . 3 . . . . . Flight 1 | . . . . . . 1 Utility 11 | 1 3 1 2 . 2 2 Device 3 | . 1 . 1 . 1 . Storage 3 | 1 1 . 1 . . . Processor 2 | . . 1 . . 1 . Hackware . | . . . . . . . Protection 3 | . 1 . . . . 2 Artifact . | . . . . . . . Weapon 16 | 2 3 2 3 . 1 5 Energy Gun 2 | . 1 1 . . . . Energy Cannon . | . . . . . . . Ballistic Gun 5 | 2 . 1 . . . 2 Ballistic Cannon 1 | . . . 1 . . . Launcher 3 | . 1 . . . 1 1 Special Weapon 2 | . . . 2 . . . Impact Weapon 1 | . . . . . . 1 Slashing Weapon 1 | . . . . . . 1 Piercing Weapon . | . . . . . . . Special Melee Weapon 1 | . 1 . . . . . Unidentified Prototypes 1 | . . . . . . 1 Parts Lost 29 | . 9 1 5 . 2 12 Power 6 | . 3 . . . 1 2 Propulsion 6 | . 3 . 1 . 1 1 Utility 7 | . . 1 . . . 6 Weapon 10 | . 3 . 4 . . 3 Highest Loss Streak 10 | . 5 1 3 . 1 10 To Critical Strikes . | . . . . . . . Average Backups 6 | . 4 5 8 8 7 5 Power . | . . . 1 1 . . Propulsion . | . 1 . . . . . Utility 2 | . 1 3 3 3 3 2 Weapon 1 | . . . 3 3 2 1 Tool/Special . | . . . . . . . Unused Backups 9 | . 1 . . . . 8 Power 1 | . . . . . . 1 Propulsion 4 | . 1 . . . . 3 Utility 1 | . . . . . . 1 Weapon 2 | . . . . . . 2 Tool/Special 1 | . . . . . . 1 Average Slot Usage (%) 82 | . 89 83 80 77 91 51 Engine 10 | . 12 11 11 11 11 3 Leg 2 | . 9 . . . . . Wheel 13 | . 1 22 20 22 17 4 Hover 4 | . 14 . . . . . Device 8 | . 9 9 6 11 11 5 Storage 11 | . 14 11 11 11 11 5 Processor 8 | . . 8 11 11 19 12 Energy Gun 1 | . . 15 . . . . Ballistic Gun 8 | . 19 4 8 . . 6 Ballistic Cannon 4 | . . . 2 11 11 2 Launcher 3 | . 5 . . . 10 3 Special Weapon 2 | . . . 9 . . . Peak Build Rating 21 | 6 9 12 17 15 20 21 Average Rating 12 | 4 6 10 13 15 18 14 On Entrance 10 | . 6 6 11 15 15 17 Avg Prop Armor Cover (%) . | . . . . . . . Naked Turns . | . . . . . . . Heaviest Build 37 | 10 30 19 28 27 34 37 Greatest Support 28 | 20 26 26 26 20 20 28 Greatest Overweight (x) 4 | . 2 . 2 1 3 4 Average Overweight (x) . | . . . . 1 1 . Largest Inventory Capacity 15 | 8 15 8 10 10 10 15 Average Capacity 9 | 6 9 8 9 10 10 8 Most Carried 10 | 2 9 7 10 8 8 9 Average Carried 6 | . 4 5 8 8 7 6 Final Capacity 15 | 8 8 8 10 10 10 15 Final Carried 8 | 2 4 7 8 8 8 8 Class Distribution -------------------- 85% | Mutant 14% | Skirmisher Dominant Class ---------------- Mutant | -10/Materials Mutant | -9/Materials Mutant | -9/Mines Mutant | -9/Exiles Skirmisher | -8/Mines Mutant | -8/Materials Resources | -11 -10 -9 -9 -9 -8 -8 ----------- Run | Yrd Mat Mat Min Exi Min Mat Matter Collected 1287 | 260 324 30 264 . 170 239 Remotely . | . . . . . . . Salvage Created 1179 | . 478 132 152 . 28 389 Parts 73 | . 31 9 10 . 12 11 Haulers Intercepted 1 | . 1 . . . . . Recyclers Shooed . | . . . . . . . Parts Field Recycled . | . . . . . . . Retrieved Matter . | . . . . . . . Parts Self-Destructed . | . . . . . . . Prevented . | . . . . . . . Parts Restored . | . . . . . . . Kills | -11 -10 -9 -9 -9 -8 -8 ------- Run | Yrd Mat Mat Min Exi Min Mat Combat Hostiles Destroyed 47 | . 14 6 10 . 11 6 Melee 2 | . 1 . 1 . . . Guns 22 | . 11 6 3 . . 2 Cannons 11 | . . . 6 . 5 . AOE 9 | . 2 . . . 6 1 Classes Destroyed 11 | . 6 . 2 . . 3 Worker 2 | . 1 . 1 . . . Builder 3 | . . . 1 . . 2 Tunneler 2 | . 1 . 1 . . . Hauler 1 | . 1 . . . . . Recycler 2 | . . . . . . 2 Watcher 4 | . 3 . . . . 1 Swarmer 23 | . 5 4 3 . 11 . Grunt 19 | . 9 2 4 . . 4 Duelist 1 | . . . . . . 1 Hunter 1 | . . . . . . 1 Assembled 3 | . . . 3 . . . Best Kill Streak 8 | . 3 4 3 . 4 8 Combat Bots Only 4 | . 3 4 3 . 4 4 Max Kills in Single Turn 4 | . 1 1 1 . 4 3 Gunslinging . | . . . . . . . Exploded 3 | . 1 . . . 3 1 Melee 1 | . 1 . 1 . . . Uniques/NPCs Destroyed . | . . . . . . . Combat | -11 -10 -9 -9 -9 -8 -8 -------- Run | Yrd Mat Mat Min Exi Min Mat Hostile Shots Fired 379 | . 114 39 66 . 45 115 Missed 103 | . 30 15 23 . 14 21 Hits 276 | . 84 24 43 . 31 94 Melee 12 | . . . 7 . . 5 Projectile 264 | . 84 24 36 . 31 89 Critical Strikes 11 | . 2 . . . . 9 Damage Taken 3713 | . 957 233 617 . 257 1649 Core 1104 | . 240 67 177 . 68 552 Absorbed by Shields . | . . . . . . . Core Remaining (%) 42 | 100 4 . . . 22 . Volleys Fired 187 | . 75 22 53 . 22 15 Largest 2 | . 2 2 2 . 2 2 Hottest 140 | . 50 85 140 . 79 79 Shots Fired 274 | . 128 26 69 . 27 24 Gun 177 | . 119 26 15 . . 17 Cannon 63 | . . . 37 . 22 4 Launcher 17 | . 9 . . . 5 3 Special 17 | . . . 17 . . . Kinetic 226 | . 114 17 52 . 22 21 Thermal 27 | . 5 5 17 . . . Explosive 17 | . 9 . . . 5 3 Electromagnetic 4 | . . 4 . . . . Robot Hit Streak 11 | . 11 4 10 . 3 4 Robot Miss Streak 5 | . 5 3 4 . 3 5 Penetration Max . | . . . . . . . Secondary Targets 3 | . 1 2 . . . . Max Gunslinging Chain 1 | . 1 1 . . . . Shots Hit Robots 167 | . 75 16 38 . 11 27 Core Hits 91 | . 46 8 14 . 9 14 Critical Kills . | . . . . . . . Critical Parts Destroyed 4 | . . . . . . 4 Critical Strikes 7 | . . . 1 . 1 5 Destroy 1 | . . . . . . 1 Blast 2 | . . . 1 . 1 . Smash 3 | . . . . . . 3 Sever 1 | . . . . . . 1 Melee Attacks 20 | . 2 1 . . . 17 Impact 10 | . . . . . . 10 Slashing 7 | . . . . . . 7 Piercing . | . . . . . . . Sneak Attacks 3 | . . 1 . . . 2 Combat Hostiles . | . . . . . . . Follow-up Attacks . | . . . . . . . Damage Inflicted 4120 | . 970 237 870 . 786 1257 Guns 1147 | . 575 237 193 . . 142 Cannons 1029 | . . . 608 . 380 41 Explosions 1202 | . 376 . . . 406 420 Melee 634 | . . . . . . 634 Ramming 51 | . 19 . 12 . . 20 Kinetic 2089 | . 544 181 801 . 380 183 Thermal 112 | . 31 24 57 . . . Explosive 1202 | . 376 . . . 406 420 Electromagnetic 32 | . . 32 . . . . Impact 462 | . . . . . . 462 Slashing 172 | . . . . . . 172 Piercing . | . . . . . . . Highest Corruption . | . . . . . . . Average Corruption . | . . . . . . . Corruption Purged . | . . . . . . . Corruption Blocked . | . . . . . . . Overload Shots . | . . . . . . . Overflow Damage 406 | . 4 . 13 . 95 294 Projectiles 36 | . . . 13 . 23 . Explosions 76 | . 4 . . . 72 . Melee 294 | . . . . . . 294 Knockbacks 15 | . . . 7 . 5 3 Impact 3 | . . . . . . 3 Kinetic 12 | . . . 7 . 5 . Secondary . | . . . . . . . Self-Inflicted Damage 88 | . 22 . 6 . . 60 Shots 3 | . 2 . . . . 1 Rammed 9 | . 7 . 1 . . 1 Targets Rammed 9 | . 7 . 1 . . 1 Kicked . | . . . . . . . Crushed . | . . . . . . . Highest Temperature 278 | . 75 72 278 . 30 36 Average Temperature 36 | . 14 19 64 . 13 16 Received Heat Transfer 1308 | . 381 84 114 . . 729 Siege Activations . | . . . . . . . Martial Activations . | . . . . . . . Shielding Activations . | . . . . . . . Robots Disrupted . | . . . . . . . Combat Hostiles . | . . . . . . . Robots Corrupted 5 | . . . . . . 5 Combat Hostiles 3 | . . . . . . 3 Parts Fried 3 | . . . . . . 3 Impact Corruptions 10 | . . . . . . 10 Robots Melted . | . . . . . . . Combat Hostiles . | . . . . . . . Parts Melted . | . . . . . . . Heat Transferred 415 | . 75 50 290 . . . Parts Sabotaged . | . . . . . . . Parts Stolen . | . . . . . . . Parts Stripped . | . . . . . . . Power Chain Reactions . | . . . . . . . Alert | -11 -10 -9 -9 -9 -8 -8 ------- Run | Yrd Mat Mat Min Exi Min Mat Maximum Alert Level . | . . . . . . . Low Security (%) 100 | 100 100 100 100 . 100 100 Level 1 . | . . . . . . . Level 2 . | . . . . . . . Level 3 . | . . . . . . . Level 4 . | . . . . . . . Level 5 . | . . . . . . . High Security . | . . . . . . . Max Security . | . . . . . . . Peak Influence 199 | . 170 113 70 . 199 104 Initial 47 | . . 42 26 . . 47 Average 62 | . 86 67 10 . 95 60 Influence Increases 1501 | . 590 156 176 . 309 270 Destroy 0b10 Robot/C 880 | . 280 120 140 . 220 120 Destroy 0b10 Robot/NC 70 | . 30 . 15 . . 25 Destroy Leader 150 | . 78 10 10 . 30 22 Successful Hack 29 | . 12 11 . . . 6 Select Force Hacks 50 | . 50 . . . . . Disable Machine 75 | . 45 . . . 15 15 Destroy Structure 127 | . 50 . 11 . 44 22 Partial Spotted 15 | . . 15 . . . . Lose Combat Pursuer 105 | . 45 . . . . 60 Influence Decreases 1427 | . 488 190 190 54 186 319 Entered New Map 232 | . . 60 42 54 . 76 Time Decay 942 | . 398 110 128 . 166 140 Lost Part 243 | . 90 10 20 . 20 103 Lost Ally 10 | . . 10 . . . . Squads Dispatched 8 | . 3 . 1 . . 4 Investigation 7 | . 3 . 1 . . 3 Extermination . | . . . . . . . Reinforcement 1 | . . . . . . 1 Assault . | . . . . . . . Garrison . | . . . . . . . Intercept . | . . . . . . . Searches Triggered . | . . . . . . . Construction Impeded 1 | . . . . . . 1 Haulers Reinforced . | . . . . . . . Active Scanning Responses . | . . . . . . . Cargo Convoy Interrupts . | . . . . . . . Stealth | -11 -10 -9 -9 -9 -8 -8 --------- Run | Yrd Mat Mat Min Exi Min Mat Distress Signals 8 | . 1 1 1 . . 5 Communications Jammed . | . . . . . . . Distress Signals . | . . . . . . . Times Spotted 75 | . 21 12 10 . 11 21 Peak Tracking Total 8 | . 6 6 3 . 4 8 Tactical Retreats 5 | . 2 . . . . 3 Traps | -11 -10 -9 -9 -9 -8 -8 ------- Run | Yrd Mat Mat Min Exi Min Mat Traps Triggered 2 | . 1 . . . . 1 Indirectly . | . . . . . . . Trap Hack Attempts . | . . . . . . . Triggered . | . . . . . . . Disarmed . | . . . . . . . Reprogrammed . | . . . . . . . Reused . | . . . . . . . Traps Extracted . | . . . . . . . Installed . | . . . . . . . Triggered . | . . . . . . . Machines | -11 -10 -9 -9 -9 -8 -8 ---------- Run | Yrd Mat Mat Min Exi Min Mat Machines Disabled 5 | . 3 . . . 1 1 Max in Single Turn 2 | . 2 . . . 1 1 Machines Repaired . | . . . . . . . Machines Dismantled . | . . . . . . . Machines Sabotaged 1 | . 1 . . . . . Overloaded Fab Kills . | . . . . . . . Hacking | -11 -10 -9 -9 -9 -8 -8 --------- Run | Yrd Mat Mat Min Exi Min Mat Machines Accessed 17 | . 7 2 2 4 . 2 Terminals 10 | . 6 1 1 . . 2 Fabricators . | . . . . . . . Repair Stations . | . . . . . . . Recycling Units 1 | . 1 . . . . . Scanalyzers 1 | . . 1 . . . . Garrison Access . | . . . . . . . Total Hacks 41 | . 20 9 2 4 . 6 Successful 23 | . 10 5 2 4 . 2 Failed 18 | . 10 4 . . . 4 Catastrophic 2 | . . . . . . 2 Database Lockouts . | . . . . . . . Manual 25 | . 14 6 . . . 5 Terminals 31 | . 17 7 1 . . 6 Fabricators . | . . . . . . . Repair Stations . | . . . . . . . Recycling Units 3 | . 3 . . . . . Scanalyzers 2 | . . 2 . . . . Garrison Access . | . . . . . . . Terminal Hacks 11 | . 3 1 2 4 . 1 Record 5 | . . . 1 4 . . Robot Analysis 3 | . 1 1 . . . 1 Open Door 1 | . . . 1 . . . Emergency Access Points 1 | . 1 . . . . . Alert Level 1 | . 1 . . . . . Fabricator Hacks . | . . . . . . . Repair Station Hacks . | . . . . . . . Recycling Unit Hacks . | . . . . . . . Scanalyzer 2 | . . 2 . . . . Retrieve Study 2 | . . 2 . . . . Garrison Access Hacks . | . . . . . . . Unauthorized Hacks 10 | . 7 2 . . . 1 Terminals 10 | . 7 2 . . . 1 Assimilate 4 | . 2 1 . . . 1 Botnet 5 | . 4 1 . . . . Sabotage 1 | . 1 . . . . . Fabricators . | . . . . . . . Repair Stations . | . . . . . . . Recycling Units . | . . . . . . . Scanalyzers . | . . . . . . . Garrison Access . | . . . . . . . Data Cores Recovered . | . . . . . . . Used . | . . . . . . . Hacking Detections 11 | . 6 2 1 . . 2 Full Trace Events 4 | . 2 . . . . 2 Feedback Events . | . . . . . . . Feedback Blocked . | . . . . . . . Robot Schematics Acquired . | . . . . . . . Robots Built . | . . . . . . . Authchips . | . . . . . . . Time . | . . . . . . . Total Robot Build Rating . | . . . . . . . Part Schematics Acquired . | . . . . . . . Parts Built . | . . . . . . . Authchips . | . . . . . . . Time . | . . . . . . . Total Part Build Rating . | . . . . . . . Part Studies Acquired 2 | . . 2 . . . . Parts Repaired . | . . . . . . . Time . | . . . . . . . Parts Recycled . | . . . . . . . Recycled Matter . | . . . . . . . Retrieved Matter . | . . . . . . . Retrieved Components . | . . . . . . . Parts Scanalyzed . | . . . . . . . Part Schematics Acquired . | . . . . . . . Parts Damaged . | . . . . . . . Bothacking | -11 -10 -9 -9 -9 -8 -8 ------------ Run | Yrd Mat Mat Min Exi Min Mat Used RIF Installer . | . . . . . . . Robots Hacked 2 | . 1 1 . . . . Non-combat 1 | . . 1 . . . . Combat 1 | . 1 . . . . . Robot Hacks Applied 2 | . 1 1 . . . . parse_system 2 | . 1 1 . . . . Relay Couplers Released . | . . . . . . . Fabnet Peak Effective % . | . . . . . . . Robots Rewired . | . . . . . . . Allies Hacked . | . . . . . . . Hacks Repelled . | . . . . . . . Allies | -11 -10 -9 -9 -9 -8 -8 -------- Run | Yrd Mat Mat Min Exi Min Mat Total Allies 1 | . . 1 . . . . Largest Group 1 | . . 1 . . . . Highest-Rated Group 10 | . . 10 . . . . Highest-Rated Ally 10 | . . 10 . . . . Total Orders . | . . . . . . . Ally Attacks . | . . . . . . . Total Damage . | . . . . . . . Kills . | . . . . . . . Allies Corrupted . | . . . . . . . Allies Melted . | . . . . . . . Intel | -11 -10 -9 -9 -9 -8 -8 ------- Run | Yrd Mat Mat Min Exi Min Mat Active Infowar (turns) 3015 | . 640 235 780 526 523 311 Optics 2335 | . . 195 780 526 523 311 Sensors 506 | . . . . . 406 100 Structural 2036 | . 640 203 456 526 119 92 Robot Analysis Total 3 | . 1 1 . . . 1 Derelict Logs Recovered 1 | . . . 1 . . . Drone Launches . | . . . . . . . Drone Recoveries . | . . . . . . . Exploration | -11 -10 -9 -9 -9 -8 -8 ------------- Run | Yrd Mat Mat Min Exi Min Mat Turns Passed 3471 | 50 1046 235 780 526 523 311 Spaces Moved 2817 | 37 651 202 527 619 489 292 Core 28 | 6 4 . . . . 18 Treads . | . . . . . . . Legs 185 | 31 154 . . . . . Wheels 1980 | . 53 202 527 619 489 90 Hover 440 | . 440 . . . . . Flight 184 | . . . . . . 184 Fastest Speed 40 | 50 56 80 80 85 85 40 Average Speed 94 | 108 126 87 82 85 93 67 Slowest Speed 250 | 120 190 90 100 85 115 250 Overloaded Moves . | . . . . . . . Propulsion Burnouts . | . . . . . . . Robots Hopped . | . . . . . . . Potential Cave-ins . | . . . . . . . Cave-ins Triggered . | . . . . . . . Exploration Rate (%) 59 | 3 95 23 74 93 83 46 Regions Visited 6 Branch Regions 3 Pre-discovered Areas . | . . . . . . . Known Exits Taken 1 | . . . . . 1 . Unknown Exits Taken 5 | 1 1 1 1 1 . . Scrap Searched 2 | . . . 2 . . . Spaces Dug 41 | . . . 1 . 40 . Terrain Destroyed 163 | . 49 . 11 . 83 20 Melee . | . . . . . . . Projectile 20 | . . . 11 . 7 2 AOE 143 | . 49 . . . 76 18 Terrain Rammed . | . . . . . . . Walls Destroyed . | . . . . . . . Machines Disabled . | . . . . . . . Actions | -11 -10 -9 -9 -9 -8 -8 --------- Run | Yrd Mat Mat Min Exi Min Mat Total 3327 | 44 766 233 782 618 525 359 Wait 198 | . . 2 185 . 9 2 Move 2811 | 36 650 201 526 618 488 292 Hop . | . . . . . . . Pick Up 25 | 2 6 2 4 . 2 9 Fast Attach 26 | 6 7 2 4 . 1 6 Attach 19 | . 7 . 2 . 2 8 Detach 9 | . 5 . 1 . . 3 Swap 11 | . 4 3 3 . 1 . Drop 12 | . 3 . 3 . . 6 Fire 187 | . 75 22 53 . 22 15 Melee 20 | . 2 1 . . . 17 Ram 9 | . 7 . 1 . . 1 Kick . | . . . . . . . Crush . | . . . . . . . Escape Stasis . | . . . . . . . Rewire . | . . . . . . . Trap . | . . . . . . . Miscellaneous . | . . . . . . . Route ------- -11/Scrapyard -10/Materials (discovered 4 exits: *Mat x2 / [*Min] / [*Sub]) -9/Materials -9/Mines -9/Exiles (discovered 2 exits: [*Min x2]) -8/Mines (discovered 2 exits: *Mat x2) -8/Materials History --------- Turn | Location | Event 6 | -11/Scrapyard | Discovered new exit (range 14) 51 | -11/Scrapyard | Entered Materials 269 | -10/Materials | Discovered new exit (range 3) 302 | -10/Materials | Build established: Mutant 356 | -10/Materials | Core integrity fell below 50% 840 | -10/Materials | Discovered new exit (range 4) 925 | -10/Materials | Discovered new exit (range 9) 948 | -10/Materials | Discovered new exit (range 9) 1025 | -10/Materials | Core integrity fell below 20% 1062 | -10/Materials | Lost 5 parts (1p2n2w) 1097 | -10/Materials | Entered another Materials area 1097 | -9/Materials | Evolved 2 slots: Utility x2 1271 | -9/Materials | Discovered new exit (range 18) 1332 | -9/Materials | Entered Mines 1348 | -9/Mines | Met a Derelict bent on vengeance 1403 | -9/Mines | A weapon hastily lodged in a ceiling crevice suddenly fell to the ground 1727 | -9/Mines | Met a Derelict shopkeep closing up shop 1798 | -9/Mines | Deemed a non-threat by the Exiles lab entrance 1798 | -9/Mines | Discovered new exit (range 6) 1886 | -9/Mines | Excavation squad dispatched 1886 | -9/Mines | A large section of the Mines collapsed 1951 | -9/Mines | Lost 3 parts (1n2w) 2078 | -9/Mines | Core integrity fell below 50% 2112 | -9/Mines | Entered Exiles 2112 | -9/Exiles | Found Exiles lab abandoned 2124 | -9/Exiles | Discovered new exit (range 17) 2324 | -9/Exiles | Discovered new exit (range 11) 2638 | -9/Exiles | Entered Mines 2729 | -8/Mines | Discovered new exit (range 10) 2778 | -8/Mines | Identified exit to Materials 3013 | -8/Mines | Discovered exit to Materials (range 12) 3044 | -8/Mines | Build established: Skirmisher 3161 | -8/Mines | Entered Materials 3161 | -8/Materials | Evolved 2 slots: Utility x2 3269 | -8/Materials | Core integrity fell below 50% 3309 | -8/Materials | Lost 10 parts (1p1n5u3w) 3398 | -8/Materials | Core integrity fell below 20% 3472 | -8/Materials | Destroyed by G-47 Trooper with Particle Gun Last Messages --------------- 03380_ G-47 Trooper suffers critical hit (Destroy). 03380_ Destroyed Imp. Heat Sink. 03383_ G-47 Trooper destroyed. 03386_ Acquired 46 matter. 03388_ Acquired 61 matter. 03396_ Critical hit (Burn: +37). 03403_ Dropped Imp. Flight Unit. 03403_ Acquired Arm. Huge Wheel. 03419_ Critical hit (Burn: +37). 03423_ K-01 Serf collects debris. 03430_ K-01 Serf cleans the Terminal. 03431_ Critical hit (Burn: +37). 03437_ G-47 Trooper destroyed. 03439_ K-01 Serf collects debris. 03448_ Connecting with Terminal... 03448_ ALERT: Suspicious activity at Terminal M009. Dispatching Investigation squad. 03450_ Lgt. Deuterium Engine destroyed. 03451_ W-25 Informer sends out distress signal. 03468_ Penetrated by Slug. 03470_ Critical hit (Burn: +37). Map ----- +----------------------------------------------------+ | ?????????????????????????????????????????????????? | | ?????????????????????????????????????????????????? | | ?????????????????????????????????????????????????? | | ########?????????????????????????????????????????? | | #?????????????????????????????????????????? | | ] ! #?????????????????????????????????????????? | | #?????????????????????????????????????????? | | #?????????????????????????????????????????? | | """ #???????????????? ???????????????????????? | | """"" #???????????????? ???????????????????????? | | """"" ?????????????????" ???????????????????????? | | """"" ??????????????? Y" ???????????????????????? | | ?""" ????????????????"" ???????????????????????? | | ?###?????????????????? ???????????????????????? | | ?????????? ??????????? ???????????????????????? | | ?????????? ?????????? k???????????????????????? | | #####????? ??######??# #??????????????????????? | | #????? ??? ??# #??????????????????????? | | #?????? ????? ?# #??????????????????????? | | #?????? ?????? ?# #??????????????????????? | | ####??? ?????? # #??????????????????????? | | "" ??????? # #??????????????????????? | | "" #####?? ????????w/ #??????????????????????? | | "" #??????# ?????????# #??????????????????????? | | #??????# ?????????# #??????????????????????? | | #??????# ?????????# @#??????????????????????? | | #??????# ?????????# #??????????????????????? | | # #???####/########## #??????????????????????? | | # #???# # #??????????????????????? | | # #???# """ """ """ # ###########????????????? | | # ##### "T" """ """ #g # #????????????? | | # =%[ + """ """ gg + """ """??????????????? | | # =##### [ # # """ """??????????????? | | #???# # # """ ""???????????????? | | ###?############### #?""" ""???????????????? | | = #???????????????# #?""" ""???????????????? | | !! ]]#???????????????# #?? ???????????????? | | !! ]]#???????????????# #?? !???????????????? | | #######???????????????# #???###????????????????? | | ??????????????????????# #??????????????????????? | | ??????????????????????# h#??????????????????????? | | ??????????????????????# #??????????????????????? | | ??????????????????????# #??????????????????????? | | ??????????????????????+ ??????????????????????? | | ??????????????????????# #??????????????????????? | | ??????????????????????# #??????????????????????? | | ??????????????????????# #??????????????????????? | | ??????????????????????# ???????????????????????? | | ??????????????????????? ???????????????????????? | | ??????????????????????? ???????????????????????? | +----------------------------------------------------+ Best States ------------- Heat Dissipation 31 Energy Generation 16 Energy Capacity 290 Matter Stores 300 Matter Capacity 300 Sight Range 18 Robot Scan Range 14 Terrain Scan Density 10 Armor Coverage 150 Evasion (%) 62 Item Schematics ----------------- None Robot Schematics ------------------ None Fabricated ------------ Nothing Repaired ---------- Nothing Studied --------- Com. Wheel | -9/Materials | Hacked Wheel | -9/Materials | Hacked Alien Tech Used ----------------- None Achievements -------------- None Challenges ------------ None Game ------ Seed TimingShieldSpear Manual? 0 Play Time 00:35:01 Cumulative 23.7 hours Start 2026.01.12 @ 18:38:49 End 2026.01.12 @ 19:10:51 Sessions 1 Manual Loads 0 Difficulty Rogue Special Mode None Game No. 31 Rogue 31 Adventurer 0 Explorer 0 Win Type - Total 0 Types 0/0/0/0/0/0/0/0/0/0 Lore% 16 Gallery% 28 Achievement% 20 Wizard Run 0 Options --------- Layout 0 ASCII 0 Keyboard 1 Movement Numpad Keybinds 0 Fullscreen 2 Font 18/SmallcapsGlow Map View 112x50 Zoom Use 0% Tactical HUD 1 Map Filters NONE Filters NONE Steam 1 RUN: 27114cf6-3ca7-464a-8e14-633105db96c3